bitfinex-derivatives/quotes_ETHF0:USTF0_20250317
["timestamp","ask_amount","ask_price","bid_price","bid_amount"]
[1742223105473,5.64317,1907.5,1907.4,0.00786637]
[1742223105779,5.73138962,1907.5,1907.4,0.00786637]
[1742223105981,1.04885,1907.0,1906.9,1.3359]
[1742223106179,4.82206962,1907.0,1906.9,1.3359]
[1742223106377,3.77321962,1907.0,1906.9,1.3359]
[1742223106568,1.04885,1907.0,1906.9,1.3359]
[1742223106877,4.6272,1907.1,1906.9,1.3359]
[1742223107179,1.04885,1907.0,1906.9,1.3359]
[1742223107380,2.46823,1907.1,1906.9,1.3359]
[1742223107569,4.73477,1907.2,1906.9,5.59259]
[1742223107772,1.0488,1907.1,1906.9,4.5437]
[1742223108076,1.04875,1907.2,1906.9,5.59258]
[1742223108474,2.45541,1907.3,1907.0,1.04883]
[1742223108676,1.4067,1907.3,1907.1,1.4479]
[1742223108871,1.04874,1907.2,1907.1,1.4479]
[1742223109907,1.0489,1906.9,1906.8,0.68294886]
[1742223110090,1.3779,1907.1,1906.8,2.11044886]
[1742223110380,1.04885,1907.0,1906.9,1.4275]
[1742223110876,2.42672,1907.1,1906.9,1.4275]
[1742223111077,1.3779,1907.1,1906.9,1.4275]
[1742223111280,1.04885,1907.0,1906.9,1.4275]
[1742223114086,2.48055,1907.0,1906.9,1.4275]
[1742223118498,5.82937,1907.5,1906.9,4.6353]
[1742223118692,1.04879,1907.1,1907.0,1.3532]
[1742223119095,1.04877,1907.2,1907.0,2.402]
[1742223119297,1.04877,1907.2,1907.1,2.0002]
[1742223120792,2.42047,1907.2,1907.1,2.0002]
[1742223121301,2.50868427,1907.2,1907.1,2.0002]
[1742223121498,2.42047,1907.2,1907.1,2.0002]
[1742223121696,2.50868393,1907.2,1907.1,2.0002]
[1742223122502,1.45991393,1907.2,1906.8,4.33594886]
[1742223122698,1.04885,1907.0,1906.9,1.4512]
[1742223122996,1.0489,1906.9,1906.8,0.00534886]
[1742223123204,5.6604255,1906.9,1906.8,0.00534886]
[1742223124505,5.66043595,1906.9,1906.8,0.00534886]
[1742223124805,5.66043595,1906.9,1906.8,1.45654886]
[1742223125896,5.5722,1906.9,1906.8,1.45654886]
[1742223127103,5.66043048,1906.9,1906.8,1.45654886]
[1742223128004,5.66042808,1906.9,1906.8,1.45654886]
[1742223129900,5.66042808,1906.9,1906.8,0.00534886]
[1742223130697,5.66044168,1906.9,1906.8,0.00534886]
[1742223132011,8.16044168,1906.9,1906.8,8.86e-06]
[1742223132201,8.85204993,1906.9,1906.8,8.86e-06]
[1742223132505,1.04929,1906.2,1906.1,1.3345]
[1742223133195,2.47495401,1906.2,1906.1,1.3345]
[1742223133506,2.47495434,1906.2,1906.1,1.3345]
[1742223133704,2.38669,1906.2,1906.1,1.3345]
[1742223133908,2.47495496,1906.2,1906.1,1.3345]
[1742223134104,2.38669,1906.2,1906.1,1.3345]
[1742223134411,1.04929,1906.2,1906.1,1.3345]
[1742223134610,2.46099,1906.2,1906.1,1.3345]
[1742223135503,2.54925679,1906.2,1906.1,1.3345]
[1742223135706,1.04934,1906.1,1906.0,0.6963]
[1742223135907,2.46104,1906.1,1906.0,2.0132]
[1742223136109,2.54930947,1906.1,1906.0,1.3169]
[1742223136305,5.13096947,1906.1,1905.7,3.9241]
[1742223136511,1.04945,1905.9,1905.8,1.3169]
[1742223136908,1.13772807,1905.9,1905.8,1.3169]
[1742223137405,1.04956,1905.7,1905.6,0.7031]
[1742223137599,1.04967,1905.5,1905.4,2.1369]
[1742223138200,41.84967,1905.5,1905.4,2.1369]
[1742223138403,1.04978,1905.3,1905.2,3.9097]
[1742223138610,1.04978,1905.3,1905.2,0.7019]
[1742223139316,1.04984,1905.2,1905.1,0.7131]
[1742223139811,0.00786637,1905.3,1905.1,4.6369]
[1742223140014,0.00786637,1905.3,1905.2,3.9097]
[1742223140205,0.00786637,1905.3,1905.2,5.298]
[1742223140905,0.00786637,1905.3,1905.2,6.34784]
[1742223141108,0.00786637,1905.3,1905.2,16.55385601]
[1742223141307,3.63,1905.9,1905.2,18.12855601]
[1742223141513,1.04953,1905.8,1905.5,4.25744]
[1742223141714,1.04956,1905.7,1905.6,2.1079]
[1742223141909,1.3098,1905.8,1905.6,2.1079]
[1742223142102,1.04956,1905.7,1905.6,0.7196]
[1742223142506,2.36720637,1905.8,1905.6,1.76921]
[1742223142714,0.00786637,1905.8,1905.7,4.25736]
[1742223143202,5.83084,1906.4,1905.9,1.04943]
[1742223143407,1.04934,1906.1,1906.0,1.72635]
[1742223143606,1.04934,1906.1,1906.0,0.677]
[1742223144312,1.04931,1906.2,1906.0,0.677]
[1742223144612,0.00786637,1906.2,1906.1,4.25714]
[1742223144813,1.05715637,1906.2,1906.1,7.28481601]
[1742223145012,1.05715637,1906.2,1906.1,11.97515601]
[1742223145210,1.05715637,1906.2,1906.1,7.28481601]
[1742223145409,1.05715637,1906.2,1906.1,10.92681601]
[1742223145715,1.05715637,1906.2,1906.1,7.28481601]
[1742223146510,1.04934,1906.1,1906.0,0.677]
[1742223146708,2.37184,1906.1,1906.0,0.677]
[1742223147913,1.04945,1905.9,1905.8,3.2078]
[1742223148416,2.37194,1906.0,1905.8,4.25731]
[1742223148614,2.37193,1906.0,1905.8,4.25729]
[1742223148812,1.04945,1905.9,1905.8,3.2078]
[1742223149212,1.04956,1905.7,1905.6,1.3371]
[1742223149719,1.04962,1905.6,1905.5,0.00786636]
[1742223150017,2.49902,1905.6,1905.5,0.00786636]
[1742223150902,1.04962,1905.6,1905.5,0.00786636]
[1742223152716,1.4494,1905.7,1905.5,0.00786636]
[1742223153015,1.04962,1905.6,1905.5,0.00786636]
[1742223153218,1.04962,1905.6,1905.5,1.44816636]
[1742223154119,1.04962,1905.6,1905.5,0.00786636]
[1742223154420,4.34571436,1905.6,1905.5,0.00786636]
[1742223154919,7.98371436,1905.6,1905.5,0.00786636]
[1742223155310,8.66501436,1905.6,1905.5,0.00786636]
[1742223155911,8.57672,1905.6,1905.5,0.00786636]
[1742223156113,8.6650291,1905.6,1905.5,0.00786636]
[1742223156724,49.4650291,1905.6,1905.5,0.00786636]
[1742223158821,57.8350291,1905.6,1905.5,6.36e-06]
[1742223159320,2.62457,1905.3,1904.7,0.20778284]
[1742223159521,1.04995,1905.0,1904.9,1.4242]
[1742223159723,4.7912591,1905.0,1904.9,1.4242]
[1742223160321,3.7413091,1905.0,1904.9,1.4242]
[1742223160520,4.70295,1905.0,1904.9,1.4242]
[1742223161726,1.05779637,1905.1,1904.9,4.632]
[1742223161923,1.05776637,1905.1,1904.9,4.632]
[1742223162228,1.05775637,1905.1,1905.0,1.3401]
[1742223163622,0.00786637,1905.1,1905.0,1.3401]
[1742223164121,1.05775637,1905.1,1905.0,1.3401]
[1742223166827,6.96462,1905.5,1905.0,3.8401]
[1742223167017,1.04987,1905.2,1905.1,3.8866]
[1742223167222,1.04987,1905.2,1905.1,9.40111601]
[1742223171629,1.04987,1905.2,1905.1,5.3241]
[1742223173125,1.04987,1905.2,1905.1,2.1163]
[1742223173432,1.04987,1905.2,1905.1,1.4375]
[1742223173932,1.05,1904.9,1904.8,0.00786637]
[1742223174330,1.13833038,1904.9,1904.8,0.00786637]
[1742223174525,2.48443018,1904.9,1904.8,0.00786637]
[1742223174729,2.3961,1904.9,1904.8,0.00786637]
[1742223175125,4.67295,1905.0,1904.8,3.21566637]
[1742223175331,4.67295,1905.0,1904.9,1.3838]
[1742223175733,3.623,1905.0,1904.9,2.4338]
[1742223176037,4.67295,1905.0,1904.9,1.3838]
[1742223176332,6.01905,1905.0,1904.9,1.3838]
[1742223176531,4.67295,1905.0,1904.9,1.3838]
[1742223177735,5.37075,1905.0,1904.9,1.3838]
[1742223178233,5.45907603,1905.0,1904.9,1.3838]
[1742223178534,5.37075,1905.0,1904.9,1.3838]
[1742223179530,5.37075,1905.0,1904.8,0.00786637]
[1742223179531,1.05,1904.9,1904.8,0.00786637]
[1742223179726,2.3637,1904.9,1904.8,1.32856637]
[1742223180532,2.45203135,1904.9,1904.8,1.32856637]
[1742223181338,2.3637,1904.9,1904.8,1.32856637]
[1742223181841,2.45203159,1904.9,1904.8,1.32856637]
[1742223183135,2.3637,1904.9,1904.8,1.32856637]
[1742223183936,1.05,1904.9,1904.8,1.32856637]
[1742223184335,0.00786637,1905.3,1905.2,1.04984]
[1742223184536,1.04994,1905.1,1904.9,4.5986]
[1742223184840,1.04989,1905.1,1905.0,2.7976]
[1742223185036,1.04995,1905.0,1904.9,3.2078]
[1742223185237,1.04995,1905.0,1904.9,4.5986]
[1742223185941,12.09111,1905.9,1904.9,8.67561601]
[1742223186144,1.04985,1905.2,1905.0,5.34021]
[1742223186338,1.3534,1905.3,1905.0,5.34021]
[1742223186644,1.04989,1905.1,1905.0,4.2903]
[1742223187236,1.04989,1905.1,1905.0,5.34022]
[1742223187440,0.00786637,1905.2,1905.1,1.04989]
[1742223187642,1.05773637,1905.2,1905.1,3.2078]
[1742223188344,0.00786637,1905.2,1905.1,4.25769]
[1742223189137,0.00786637,1905.2,1905.1,5.58089]
[1742223190236,3.2078,1906.1,1905.2,2.6246]
[1742223190437,2.39131,1905.7,1905.6,3.2078]
[1742223190634,1.04967,1905.5,1905.4,5.2289]
[1742223191140,1.04967,1905.5,1905.4,6.27863]
[1742223191344,1.04967,1905.5,1905.4,5.2289]
[1742223191548,1.34956637,1905.6,1905.5,1.04967]
[1742223191744,1.34956637,1905.6,1905.5,2.37287]
[1742223192437,0.00786637,1905.6,1905.5,6.02187]
[1742223192844,0.00786637,1905.6,1905.5,8.93841733]
[1742223193036,1.3634,1905.9,1905.8,1.04951]
[1742223193236,0.6952,1906.2,1905.8,4.25731]
[1742223193237,1.04939,1906.1,1905.8,4.25731]
[1742223193539,2.41279,1906.1,1906.0,3.2078]
[1742223194045,2.41279,1906.1,1906.0,4.5493]
[1742223194249,2.41274,1906.1,1906.0,1.3415]
[1742223194946,2.41274,1906.1,1906.0,4.5493]
[1742223195443,0.00786637,1906.2,1906.0,8.62631601]
[1742223195649,0.00786637,1906.2,1906.1,6.07984]
[1742223196251,0.00786637,1906.2,1906.1,6.80524]
[1742223196442,1.05715637,1906.2,1906.1,6.80524]
[1742223196648,0.00786637,1906.2,1906.1,6.80524]
[1742223197442,1.3218,1906.6,1906.1,5.7559]
[1742223197651,1.04922,1906.4,1906.3,3.2078]
[1742223197841,3.2078,1906.8,1906.7,1.04901]
[1742223198038,42.1471,1906.8,1906.5,3.2078]
[1742223198244,1.3471,1906.7,1906.5,3.2078]
[1742223198446,1.04907,1906.6,1906.5,4.25692]
[1742223198645,1.3471,1906.7,1906.6,1.04907]
[1742223200152,2.39611,1906.7,1906.6,1.04907]
[1742223200549,2.39611,1906.7,1906.6,1.72387]
[1742223200845,1.3471,1906.7,1906.6,1.72387]
[1742223201463,2.39611,1906.7,1906.6,1.72387]
[1742223201960,1.3471,1906.7,1906.6,1.72387]
[1742223202661,2.39611,1906.7,1906.6,1.72387]
[1742223202860,1.3471,1906.7,1906.6,1.72387]
[1742223203759,2.39611,1906.7,1906.6,0.6748]
[1742223204259,1.04918,1906.4,1906.3,7.28481601]
[1742223204453,5.2372,1906.6,1906.1,4.25711]
[1742223204662,1.04934,1906.1,1906.0,4.76391601]
[1742223204961,41.84934,1906.1,1906.0,4.07701601]
[1742223205761,41.84934,1906.1,1906.0,5.12641601]
[1742223205955,1.04933,1906.2,1906.1,1.04934]
[1742223206259,1.3205,1906.2,1906.0,5.12636601]
[1742223206562,1.04934,1906.1,1906.0,5.12636601]
[1742223206761,1.04934,1906.1,1906.0,5.81326601]
[1742223206956,1.04934,1906.1,1906.0,4.76391601]
[1742223207262,1.04934,1906.1,1906.0,5.81331601]
[1742223207462,1.04934,1906.1,1906.0,4.76391601]
[1742223207861,1.75624,1906.1,1906.0,4.07701601]
[1742223208060,1.0494,1906.0,1905.9,3.21566637]
[1742223208263,2.4835,1906.0,1905.9,3.21566637]
[1742223208458,2.4835,1906.0,1905.9,0.00786637]
[1742223209158,1.4341,1906.0,1905.9,7.91511637]
[1742223209359,5.83077,1906.4,1905.9,6.86566637]
[1742223209564,1.04935,1906.1,1906.0,1.04935]
[1742223209865,2.48343,1906.2,1906.1,1.04934]
[1742223210160,1.04935,1906.1,1906.0,1.04936]
[1742223210463,2.42105,1906.1,1906.0,1.70626]
[1742223211765,1.3717,1906.1,1906.0,1.70626]
[1742223211961,1.0493,1906.2,1906.1,1.0493]
[1742223212153,1.0493,1906.2,1906.1,4.2571]
[1742223212359,1.3717,1906.2,1906.1,4.25714]
[1742223212558,2.42099,1906.2,1906.1,4.25714]
[1742223212961,2.42099,1906.2,1906.1,5.57304]
[1742223213160,1.3717,1906.2,1906.1,5.57304]
[1742223213570,2.42099,1906.2,1906.1,5.57304]
[1742223214263,2.42099,1906.2,1906.1,3.2078]
[1742223214859,2.42099,1906.2,1906.1,4.25714]
[1742223215264,2.42099,1906.2,1906.1,4.6021]
[1742223217061,2.42099,1906.2,1906.1,3.2078]
[1742223218269,2.42099,1906.2,1906.1,4.25714]
[1742223218972,2.42099,1906.2,1906.1,6.8318]
[1742223219173,2.42099,1906.2,1906.1,3.2078]
[1742223221473,2.42099,1906.2,1906.1,4.25714]
[1742223221674,2.42099,1906.2,1906.1,4.6451]
[1742223223077,2.42099,1906.2,1906.1,5.69444]
[1742223223570,2.42099,1906.2,1906.1,4.6451]
[1742223225576,2.42099,1906.2,1906.1,5.69444]
[1742223225775,2.42099,1906.2,1906.1,4.6451]
[1742223227675,2.42099,1906.2,1906.1,5.69444]
[1742223228478,3.21304427,1906.8,1906.2,2.62321]
[1742223228680,1.04912,1906.5,1906.4,1.04918]
[1742223228882,1.04912,1906.5,1906.4,2.47178]
[1742223229777,1.04918,1906.4,1906.3,7.4728]
[1742223229971,1.04929,1906.2,1906.1,4.6304]
[1742223230371,1.04929,1906.2,1906.1,5.67974]
[1742223230774,1.3727,1906.3,1906.2,1.04929]
[1742223230976,1.3727,1906.3,1906.2,2.47189]
[1742223231482,2.42193,1906.3,1906.2,1.4226]
[1742223232174,2.42193,1906.3,1906.2,2.47189]
[1742223232682,2.42193,1906.3,1906.2,1.4226]
[1742223233578,2.42193,1906.3,1906.2,2.47189]
[1742223233787,1.3727,1906.3,1906.2,2.47189]
[1742223234181,1.04919,1906.4,1906.2,1.4226]
[1742223234380,3.13036,1906.5,1906.3,4.5777]
[1742223234581,3.13036,1906.5,1906.4,2.0301]
[1742223234780,3.13036,1906.5,1906.4,3.07928]
[1742223235281,2.0812,1906.5,1906.4,3.07928]
[1742223235490,0.6906,1906.7,1906.4,2.7207]
[1742223235685,1.3595,1906.7,1906.6,1.04907]
[1742223236077,1.3595,1906.7,1906.6,2.41897]
[1742223236278,0.00524427,1906.8,1906.7,1.04901]
[1742223236483,0.00524427,1906.8,1906.7,5.62671]
[1742223236685,0.00524427,1906.8,1906.7,9.23471]
[1742223237386,0.00524427,1906.8,1906.7,13.31172601]
[1742223238391,3.2078,1907.6,1906.9,2.62226]
[1742223238687,2.44278,1907.3,1907.2,1.04869]
[1742223238890,2.44278,1907.3,1907.1,4.25655]
[1742223239088,1.04868,1907.3,1907.2,1.3854]
[1742223239481,1.04874,1907.2,1907.1,0.00786637]
[1742223240288,1.13695696,1907.2,1907.1,0.00786637]
[1742223240483,1.04874,1907.2,1907.1,0.00786637]
[1742223241087,4.65572,1907.3,1907.1,1.05661637]
[1742223241286,4.65572,1907.3,1907.2,1.3095]
[1742223241891,1.04872,1907.3,1907.2,2.35824]
[1742223242079,1.04868,1907.3,1907.2,2.35822]
[1742223242493,1.04868,1907.3,1907.2,1.3095]
[1742223242679,1.04874,1907.2,1907.1,0.00786637]
[1742223243089,1.13695443,1907.2,1907.1,0.00786637]
[1742223243293,41.93695443,1907.2,1907.1,0.00786637]
[1742223243487,41.93695443,1907.2,1906.8,3.2078]
[1742223243488,1.0489,1906.9,1906.8,3.2078]
[1742223243796,1.04896,1906.8,1906.7,4.07701601]
[1742223243989,1.7211,1906.8,1906.6,3.06595]
[1742223244188,3.609,1907.0,1906.6,2.0169]
[1742223244395,3.609,1907.0,1906.3,4.07701601]
[1742223244396,1.04918,1906.4,1906.3,4.07701601]
[1742223244595,1.04923,1906.3,1906.2,3.2078]
[1742223244792,1.04923,1906.3,1906.2,1.32446637]
[1742223244991,1.04923,1906.3,1906.2,0.00786637]
[1742223245384,4.68223,1906.3,1906.2,0.00786637]
[1742223245588,3.633,1906.3,1906.2,0.00786637]
[1742223245795,0.6721,1906.4,1906.2,1.05712637]
[1742223245990,1.72129,1906.4,1906.2,1.05712637]
[1742223246193,1.72129,1906.4,1906.2,2.37372637]
[1742223246500,1.04923,1906.3,1906.2,1.32446637]
[1742223246901,1.04923,1906.3,1906.2,0.00786637]
[1742223247197,1.0494,1906.0,1905.9,0.6855]
[1742223247593,1.04956,1905.7,1905.6,3.2078]
[1742223248193,4.3349,1905.9,1905.6,4.25739]
[1742223248399,0.00786637,1905.8,1905.7,1.04955]
[1742223248601,1.05737637,1905.8,1905.7,0.6775]
[1742223248801,0.00786637,1905.8,1905.7,1.72706]
[1742223249403,0.00786637,1905.8,1905.7,0.6775]
[1742223249596,0.00786637,1905.8,1905.6,3.2078]
[1742223249803,1.04956,1905.7,1905.6,3.2078]
[1742223250207,1.05740637,1905.8,1905.6,4.2574]
[1742223250517,0.00786637,1905.8,1905.6,3.2078]
[1742223250714,0.00786637,1905.8,1905.7,0.6876]
[1742223250908,1.05738637,1905.8,1905.7,0.6876]
[1742223252214,1.04956,1905.7,1905.6,7.28481601]
[1742223252511,1.04962,1905.6,1905.5,0.00786637]
[1742223252708,1.04984,1905.2,1905.1,4.07701601]
[1742223252911,1.04989,1905.1,1905.0,3.8966]
[1742223253106,1.4016,1905.1,1905.0,4.94655]
[1742223253309,4.69677,1905.4,1905.0,3.8966]
[1742223253510,1.04967,1905.6,1905.2,3.2078]
[1742223253715,5.0516,1905.7,1905.5,1.04967]
[1742223253917,2.45116,1905.7,1905.6,0.6888]
[1742223254312,1.4016,1905.7,1905.6,0.6888]
[1742223254614,2.45116,1905.7,1905.6,0.6888]
[1742223255010,1.4016,1905.7,1905.6,1.73842]
[1742223255205,1.05740637,1905.8,1905.6,4.94622]
[1742223255613,1.04956,1905.7,1905.6,3.8966]
[1742223255805,2.45901637,1905.8,1905.6,4.94622]
[1742223256010,1.04956,1905.7,1905.6,3.8966]
[1742223256210,1.04956,1905.7,1905.5,4.07701601]
[1742223256211,1.04962,1905.6,1905.5,4.07701601]
[1742223256608,6.0908,1905.7,1905.5,4.07701601]
[1742223256821,2.43882,1905.6,1905.5,4.79651601]
[1742223257118,1.3892,1905.6,1905.5,4.79651601]
[1742223257314,2.43882,1905.6,1905.5,4.79651601]
[1742223257511,2.43882,1905.6,1905.5,4.07701601]
[1742223257717,1.04967,1905.5,1905.4,3.2078]
[1742223257914,1.04978,1905.3,1905.2,3.21566637]
[1742223258218,1.04978,1905.3,1905.2,0.00786637]
[1742223258417,4.70478,1905.3,1905.2,0.00786637]
[1742223258814,6.09748,1905.3,1905.2,0.00786637]
[1742223261019,2.44248,1905.3,1905.2,0.00786637]
[1742223263622,2.44248,1905.3,1904.7,2.0688]
[1742223263623,1.05,1904.9,1904.8,3.2078]
[1742223264619,1.04999,1905.0,1904.8,4.25786]
[1742223264818,1.04999,1905.0,1904.9,1.4518]
[1742223265530,3.64,1905.1,1904.9,2.50175]
[1742223265822,1.04989,1905.1,1905.0,4.25775]
[1742223266025,1.04988,1905.2,1905.1,1.04989]
[1742223266219,1.04988,1905.2,1905.1,0.6535]
[1742223268021,1.04984,1905.2,1905.1,0.6535]
[1742223268217,4.68583,1905.3,1905.1,0.6535]
[1742223268423,1.04984,1905.2,1905.1,0.6535]
[1742223268924,1.04984,1905.2,1905.1,1.70339]
[1742223269125,1.04984,1905.2,1905.1,4.91119]
[1742223269430,1.04984,1905.2,1905.1,0.6535]
[1742223270028,1.04984,1905.2,1905.1,1.70339]
[1742223270827,1.04981,1905.3,1905.2,1.04983]
[1742223271230,1.04981,1905.3,1905.1,4.91115]
[1742223271428,1.04984,1905.2,1905.1,3.8613]
[1742223271827,3.625,1905.4,1905.1,3.8613]
[1742223272032,1.04984,1905.2,1905.1,4.91116]
[1742223272531,1.04984,1905.2,1905.1,0.6535]
[1742223273130,1.04989,1905.1,1905.0,4.07701601]
[1742223273327,1.04989,1905.1,1904.7,3.21566637]
[1742223273328,3.3276,1905.1,1904.7,3.21566637]
[1742223273527,1.05006,1904.8,1904.7,0.00786637]
[1742223273926,4.67306,1904.8,1904.7,0.00786637]
[1742223274121,45.47306,1904.8,1904.7,0.00786637]
[1742223275131,4.67306,1904.8,1904.7,1.05797637]
[1742223275428,1.05005,1904.9,1904.8,1.05005]
[1742223275631,6.8288,1905.0,1904.7,0.00786637]
[1742223275632,3.621,1905.0,1904.7,0.00786637]
[1742223275834,1.05,1904.9,1904.8,1.05006]
[1742223276030,3.621,1905.0,1904.7,0.00786637]
[1742223276031,1.05006,1904.8,1904.7,0.00786637]
[1742223277030,3.621,1905.0,1904.7,0.00786637]
[1742223277336,1.75274,1905.1,1905.0,1.04995]
[1742223277535,1.04987,1905.2,1905.1,1.04989]
[1742223278230,1.04989,1905.1,1905.0,4.9305]
[1742223278827,1.04989,1905.1,1905.0,3.8806]
[1742223279433,1.04989,1905.1,1905.0,0.6728]
[1742223279831,1.04995,1905.0,1904.9,4.07701601]
[1742223280027,1.74475,1905.0,1904.9,4.07701601]
[1742223281334,1.04995,1905.0,1904.9,5.12701601]
[1742223281529,1.04995,1905.0,1904.9,4.73111601]
[1742223281738,1.04995,1905.0,1904.9,5.78111601]
[1742223282237,1.04995,1905.0,1904.9,4.73111601]
[1742223282929,1.04995,1905.0,1904.9,2.0049]
[1742223284034,1.04995,1905.0,1904.9,0.6541]
[1742223284232,1.74155,1905.0,1904.9,0.6541]
[1742223284424,1.05006,1904.8,1904.7,4.08488238]
[1742223284630,1.05006,1904.8,1904.7,0.00786637]
[1742223285142,2.44864,1904.9,1904.7,1.39666637]
[1742223285334,1.3986,1904.9,1904.8,1.05006]
[1742223285731,1.05006,1904.8,1904.7,2.44677637]
[1742223286040,2.44863,1904.9,1904.8,1.05006]
[1742223286238,2.44863,1904.9,1904.8,2.43886]
[1742223286537,4.66999,1905.0,1904.9,1.05]
[1742223286734,5.0097,1905.2,1905.0,1.04993]
[1742223286932,0.6681,1905.3,1905.1,1.3239]
[1742223287246,3.624,1905.5,1905.2,1.04984]
[1742223287429,1.04973,1905.4,1905.3,1.3239]
[1742223287632,3.21566637,1905.8,1905.3,2.0252]
[1742223287833,1.04969,1905.5,1905.4,4.25751]
[1742223288038,1.04966,1905.6,1905.5,1.04967]
[1742223288238,1.7177,1905.7,1905.6,1.04962]
[1742223288436,0.6681,1905.7,1905.5,3.03153]
[1742223288634,1.71766,1905.7,1905.6,1.3239]
[1742223289441,0.6681,1905.7,1905.6,2.37352]
[1742223289740,1.05740637,1905.8,1905.6,2.37352]
[1742223289741,1.05740637,1905.8,1905.6,5.58127]
[1742223289943,1.05740637,1905.8,1905.7,1.3397]
[1742223290840,0.00786637,1905.8,1905.3,4.77831601]
[1742223291041,1.0497,1905.5,1905.4,1.3397]
[1742223292039,1.0496,1905.7,1905.4,4.5475]
[1742223292241,1.0496,1905.7,1905.5,3.06154]
[1742223292542,1.0496,1905.7,1905.6,1.352]
[1742223293845,1.0496,1905.7,1905.6,2.40162]
[1742223294143,0.00786637,1905.8,1905.6,2.40162]
[1742223294342,0.00786637,1905.8,1905.7,1.352]
[1742223294545,1.04962,1905.6,1905.5,0.6722]
[1742223294844,1.04962,1905.6,1905.3,4.77831601]
[1742223294845,2.63167637,1905.8,1905.3,5.82805601]
[1742223295144,2.63167637,1905.8,1905.4,1.352]
[1742223295145,1.04967,1905.5,1905.4,1.352]
[1742223296543,1.04973,1905.4,1905.3,0.7013]
[1742223296747,1.04972,1905.5,1905.3,2.0496]
[1742223296949,1.04972,1905.5,1905.4,1.3483]
[1742223297442,0.7214,1905.6,1905.4,1.3483]
[1742223297644,4.67159,1905.7,1905.5,1.04965]
[1742223297845,1.04959,1905.7,1905.6,1.3483]
[1742223300050,1.04978,1905.3,1905.2,3.2078]
[1742223300249,1.04984,1905.2,1905.1,1.9642]
[1742223300452,1.04989,1905.1,1905.0,7.98151601]
[1742223300640,1.04989,1905.1,1905.0,3.9045]
[1742223300950,6.24451,1905.3,1904.9,1.05]
[1742223301255,1.04989,1905.1,1905.0,3.2078]
[1742223301547,1.04989,1905.1,1905.0,5.59225]
[1742223301745,1.04989,1905.1,1905.0,4.5423]
[1742223302142,1.04989,1905.1,1905.0,1.3345]
[1742223303151,1.05,1904.9,1904.8,4.5599]
[1742223303348,1.05006,1904.8,1904.7,4.08488238]
[1742223303657,2.47326,1904.8,1904.7,0.00786637]
[1742223304644,2.56159545,1904.8,1904.7,0.00786637]
[1742223304849,1.05033,1904.3,1904.2,7.28481601]
[1742223305045,1.05033,1904.3,1904.2,3.2078]
[1742223305248,3.2078,1904.3,1903.9,4.07701601]
[1742223305457,1.4457,1904.2,1903.9,4.07701601]
[1742223305652,5.0637,1904.2,1903.9,5.48541601]
[1742223306157,1.0505,1904.0,1903.9,5.49328238]
[1742223306860,1.05066,1903.7,1903.6,0.7096]
[1742223307047,1.05072,1903.6,1903.5,1.4084]
[1742223307249,1.05063,1903.8,1903.5,1.4084]
[1742223307450,1.4457,1903.8,1903.7,1.05066]
[1742223307659,4.6705,1904.0,1903.8,1.05061]
[1742223307852,1.4067,1904.1,1903.8,1.05061]
[1742223308053,1.05052,1904.0,1903.9,1.4043]
[1742223308449,1.05061,1903.8,1903.7,0.00524428]
[1742223308655,1.4067,1903.9,1903.7,0.00524428]
[1742223308855,2.45729,1903.9,1903.7,1.40954428]
[1742223309764,2.45729,1903.9,1903.7,0.00524428]
[1742223309765,1.05061,1903.8,1903.7,0.00524428]
[1742223310064,1.05072,1903.6,1903.5,4.07701601]
[1742223310362,1.05078,1903.5,1903.4,3.2078]
[1742223310559,2.37278,1903.5,1903.4,4.6304]
[1742223310761,1.322,1903.5,1903.4,4.6304]
[1742223311260,1.322,1903.5,1903.2,0.7035]
[1742223311450,1.05094,1903.2,1903.1,3.2078]
[1742223311650,3.637,1903.2,1902.9,3.2078]
[1742223311861,2.37301,1903.1,1902.9,3.2078]
[1742223312162,1.322,1903.1,1903.0,1.4226]
[1742223312361,2.373,1903.1,1903.0,1.4226]
[1742223312565,1.05113,1902.9,1902.5,4.5672]
[1742223312766,2.37319,1902.8,1902.6,1.4226]
[1742223312966,1.322,1902.8,1902.5,3.8808]
[1742223313266,4.968,1902.8,1902.7,1.05122]
[1742223313462,1.05106,1903.0,1902.6,8.70741601]
[1742223313661,8.2452,1903.1,1902.7,1.3308]
[1742223313853,1.05116,1902.8,1902.7,1.3308]
[1742223314061,2.44054,1902.9,1902.7,1.3308]
[1742223314255,5.0374,1902.9,1902.7,1.3308]
[1742223314460,5.0374,1902.9,1902.7,2.38202]
[1742223314662,6.08852,1902.9,1902.7,1.3308]
[1742223314857,5.0374,1902.9,1902.6,7.28481601]
[1742223315064,1.05119,1902.8,1902.6,7.28481601]
[1742223315264,1.3894,1902.7,1902.6,7.28481601]
[1742223315464,3.648,1902.9,1902.6,7.28481601]
[1742223315773,1.05122,1902.7,1902.6,7.28481601]
[1742223315958,2.44059,1902.8,1902.6,3.2078]
[1742223316268,1.05122,1902.7,1902.6,3.2078]
[1742223316568,4.69913,1902.9,1902.6,3.2078]
[1742223316762,2.43857,1902.8,1902.6,3.2078]
[1742223316963,1.3874,1902.8,1902.6,4.25903]
[1742223317164,2.43859,1902.8,1902.6,3.2078]
[1742223317565,1.05122,1902.7,1902.6,3.2078]
[1742223317767,2.43862,1902.7,1902.6,3.2078]
[1742223318371,1.3874,1902.7,1902.6,3.2078]
[1742223318570,2.43862,1902.7,1902.6,3.2078]
[1742223318766,1.05127,1902.6,1902.5,0.673]
[1742223318973,2.43867,1902.6,1902.5,0.673]
[1742223319372,1.3874,1902.6,1902.3,3.2078]
[1742223320171,1.05135,1902.5,1902.3,4.25923]
[1742223320366,2.40538,1902.4,1902.3,3.2078]
[1742223321379,6.06138,1902.4,1902.3,3.2078]